Cogmind - Beta 14 @@@ ROGUE MODE // 2024.09.17 @ 01:46:35 Player: Dull Result: Destroyed by G-34 Mercenary with Small Laser Performance ------------- Evolutions (0) 0 Regions Visited (1) 200 Robots Destroyed (23) 115 Value Destroyed (519) 519 Prototype IDs (3) 60 Alien Tech Used (0) 0 Bonus (0) 0 TOTAL SCORE: 894 Bonus ------- None Cogmind --------- Core Integrity 0/250 Matter 291/300 Energy 99/100 System Corruption 4% Temperature Cool (6) Movement Core (1400) Ox27 Location -10/Materials Parts ------- > --- POWER (1) -------- (None) > --- PROPULSION (2) --- (None) > --- UTILITY (2) ------ Improved Heat Sink Huge Storage Unit > --- WEAPON (2) ------- Small Laser Light Assault Rifle > --- INVENTORY (25) --- Light Ion Engine Light Ion Engine Aluminum Leg Wheel Wheel Improved Heat Sink Small Storage Unit Huge Storage Unit Improved Terrain Scanner Tractor Beam Light Cannon Mining Laser Peak State ------------ > --- POWER ------------ Ion Engine > --- PROPULSION ------- Light Treads Aluminum Leg > --- UTILITY ---------- Huge Storage Unit Hacking Suite > --- WEAPON ----------- Small Laser Assault Rifle > --- INVENTORY -------- Light Ion Engine Aluminum Leg Aluminum Leg Wheel Small Storage Unit Huge Storage Unit Improved Terrain Scanner Tractor Beam [Rating: 10] Favorites ----------- Power Ion Engine Engine Ion Engine Propulsion Light Treads Treads Light Treads Leg Aluminum Leg Utility Hacking Suite Device Improved Heat Sink Storage Huge Storage Unit Hackware Hacking Suite Weapon Small Laser Energy Gun Small Laser Ballistic Gun Assault Rifle Build | -11 -10 ------- Run | Yrd Mat Slots Evolved . | . . Power . | . . Propulsion . | . . Utility . | . . Weapon . | . . Parts Attached 17 | 3 14 Power 3 | . 3 Engine 3 | . 3 Core . | . . Reactor . | . . Propulsion 6 | 2 4 Treads 4 | 2 2 Leg 2 | . 2 Wheel . | . . Hover . | . . Flight . | . . Utility 5 | 1 4 Device 3 | 1 2 Storage 1 | . 1 Processor . | . . Hackware 1 | . 1 Protection . | . . Artifact . | . . Weapon 3 | . 3 Energy Gun 2 | . 2 Energy Cannon . | . . Ballistic Gun 1 | . 1 Ballistic Cannon . | . . Launcher . | . . Special Weapon . | . . Impact Weapon . | . . Slashing Weapon . | . . Piercing Weapon . | . . Special Melee Weapon . | . . Unidentified Prototypes . | . . Parts Lost 10 | . 10 Power 2 | . 2 Propulsion 4 | . 4 Utility 1 | . 1 Weapon 3 | . 3 Highest Loss Streak 4 | . 4 To Critical Strikes . | . . Average Slot Usage (%) 99 | . 99 Engine 13 | . 13 Treads 15 | . 15 Leg 12 | . 12 Storage 14 | . 14 Hackware 13 | . 13 Energy Gun 14 | . 14 Ballistic Gun 13 | . 13 Peak Build Rating 10 | 9 10 Average Rating 9 | 6 9 On Entrance 7 | 6 9 Naked Turns . | . . Heaviest Build 88 | 14 88 Greatest Support 40 | 40 40 Greatest Overweight (x) 4 | . 4 Average Overweight (x) 2 | . 2 Largest Inventory Capacity 25 | 8 25 Average Capacity 22 | 8 22 Most Carried 15 | 6 15 Average Carried 11 | 5 11 Final Capacity 25 | 8 25 Final Carried 12 | 5 12 Class Distribution -------------------- 97% | Mutant Dominant Class ---------------- Mutant | -10/Materials Resources | -11 -10 ----------- Run | Yrd Mat Matter Collected 593 | 218 375 Remotely . | . . Salvage Created 728 | 92 636 Parts 53 | 5 48 Haulers Intercepted 1 | . 1 Recyclers Shooed 2 | 1 1 Parts Field Recycled . | . . Retrieved Matter . | . . Parts Self-Destructed . | . . Prevented . | . . Kills | -11 -10 ------- Run | Yrd Mat Combat Hostiles Destroyed 14 | . 14 Guns 14 | . 14 Classes Destroyed 8 | 2 6 Worker 3 | . 3 Tunneler 1 | 1 . Hauler 1 | . 1 Recycler 1 | 1 . Operator 1 | . 1 Watcher 2 | . 2 Swarmer 3 | . 3 Grunt 11 | . 11 Best Kill Streak 5 | 2 5 Combat Bots Only 3 | . 3 Max Kills in Single Turn 2 | 1 2 Gunslinging 1 | . 1 Exploded . | . . Melee . | . . Uniques/NPCs Destroyed . | . . Combat | -11 -10 -------- Run | Yrd Mat Hostile Shots Fired 131 | . 131 Missed 30 | . 30 Damage Taken 1308 | . 1308 Core 250 | . 250 Absorbed by Shields . | . . Core Remaining (%) 100 | 100 . Volleys Fired 90 | 6 84 Largest 2 | 2 2 Hottest 80 | 60 80 Shots Fired 173 | 12 161 Gun 173 | 12 161 Cannon . | . . Launcher . | . . Special . | . . Kinetic 86 | 6 80 Thermal 87 | 6 81 Explosive . | . . Electromagnetic . | . . Robot Hit Streak 11 | 5 11 Robot Miss Streak 6 | 2 6 Penetration Max . | . . Secondary Targets 4 | . 4 Max Gunslinging Chain 1 | . 1 Shots Hit Robots 123 | 8 115 Core Hits 47 | 3 44 Critical Kills . | . . Critical Parts Destroyed 1 | . 1 Critical Strikes 1 | . 1 Destroy 1 | . 1 Melee Attacks . | . . Impact . | . . Slashing . | . . Piercing . | . . Sneak Attacks . | . . Combat Hostiles . | . . Follow-up Attacks . | . . Damage Inflicted 1528 | 101 1427 Guns 1528 | 101 1427 Cannons . | . . Explosions . | . . Melee . | . . Ramming . | . . Kinetic 733 | 67 666 Thermal 795 | 34 761 Explosive . | . . Electromagnetic . | . . Impact . | . . Slashing . | . . Piercing . | . . Highest Corruption 4 | . 4 Average Corruption 2 | . 2 Corruption Purged . | . . Corruption Blocked . | . . Effects 33 | . 33 Message Errors 10 | . 10 Matter Fused 8 | . 8 Heat Flow Errors 2 | . 2 Energy Discharges 3 | . 3 Data Loss (minor) 4 | . 4 Data Loss (major) 2 | . 2 Misfires 1 | . 1 Weapon Failures 3 | . 3 Overload Shots . | . . Overflow Damage . | . . Projectiles . | . . Explosions . | . . Melee . | . . Knockbacks . | . . Impact . | . . Kinetic . | . . Secondary . | . . Self-Inflicted Damage . | . . Shots . | . . Rammed . | . . Targets Rammed . | . . Kicked . | . . Crushed . | . . Highest Temperature 148 | . 148 Average Temperature 30 | . 30 Received Heat Transfer 681 | . 681 Siege Activations . | . . Robots Corrupted . | . . Combat Hostiles . | . . Parts Fried . | . . Impact Corruptions . | . . Robots Melted . | . . Combat Hostiles . | . . Parts Melted 1 | . 1 Heat Transferred 1725 | 75 1650 Parts Sabotaged . | . . Parts Stolen . | . . Parts Stripped . | . . Power Chain Reactions . | . . Alert | -11 -10 ------- Run | Yrd Mat Peak Influence 190 | 10 190 Initial 6 | . 6 Average 44 | 6 45 Maximum Alert Level . | . . Low Security (%) 100 | 100 100 Level 1 . | . . Level 2 . | . . Level 3 . | . . Level 4 . | . . Level 5 . | . . High Security . | . . Max Security . | . . Squads Dispatched 4 | . 4 Investigation 4 | . 4 Extermination . | . . Reinforcement . | . . Assault . | . . Garrison . | . . Intercept . | . . Searches Triggered . | . . Construction Impeded . | . . Haulers Reinforced . | . . Active Scanning Responses . | . . Cargo Convoy Interrupts . | . . Stealth | -11 -10 --------- Run | Yrd Mat Distress Signals 2 | . 2 Communications Jammed . | . . Distress Signals . | . . Times Spotted 29 | . 29 Peak Tracking Total 5 | . 5 Tactical Retreats . | . . Traps | -11 -10 ------- Run | Yrd Mat Traps Triggered 4 | . 4 Indirectly . | . . Trap Hack Attempts . | . . Triggered . | . . Disarmed . | . . Reprogrammed . | . . Reused . | . . Traps Extracted . | . . Installed . | . . Triggered . | . . Machines | -11 -10 ---------- Run | Yrd Mat Machines Disabled 1 | . 1 Max in Single Turn 1 | . 1 Machines Repaired . | . . Machines Dismantled . | . . Machines Sabotaged . | . . Overloaded Fab Kills . | . . Hacking | -11 -10 --------- Run | Yrd Mat Machines Accessed 8 | . 8 Terminals 6 | . 6 Fabricators . | . . Repair Stations . | . . Recycling Units 2 | . 2 Scanalyzers . | . . Garrison Access . | . . Total Hacks 27 | . 27 Successful 15 | . 15 Failed 11 | . 11 Catastrophic 1 | . 1 Database Lockouts 1 | . 1 Manual 23 | . 23 Terminals 22 | . 22 Fabricators . | . . Repair Stations . | . . Recycling Units 5 | . 5 Scanalyzers . | . . Garrison Access . | . . Terminal Hacks 12 | . 12 Part Schematic 3 | . 3 Robot Analysis 8 | . 8 Prototype ID Bank 1 | . 1 Fabricator Hacks . | . . Repair Station Hacks . | . . Recycling Unit Hacks . | . . Scanalyzer . | . . Garrison Access Hacks . | . . Unauthorized Hacks 3 | . 3 Terminals . | . . Fabricators . | . . Repair Stations . | . . Recycling Units 3 | . 3 Reject 1 | . 1 Mask 2 | . 2 Scanalyzers . | . . Garrison Access . | . . Data Cores Recovered . | . . Used . | . . Hacking Detections 8 | . 8 Full Trace Events 4 | . 4 Feedback Events . | . . Feedback Blocked . | . . Robot Schematics Acquired . | . . Robots Built . | . . Authchips . | . . Time . | . . Total Robot Build Rating . | . . Part Schematics Acquired 3 | . 3 Parts Built . | . . Authchips . | . . Time . | . . Total Part Build Rating . | . . Parts Repaired . | . . Time . | . . Parts Recycled . | . . Recycled Matter . | . . Retrieved Matter . | . . Retrieved Components . | . . Parts Scanalyzed . | . . Part Schematics Acquired . | . . Parts Damaged . | . . Bothacking | -11 -10 ------------ Run | Yrd Mat Used RIF Installer . | . . Robots Hacked . | . . Non-combat . | . . Combat . | . . Robot Hacks Applied . | . . Relay Couplers Released . | . . Fabnet Peak Effective % . | . . Robots Rewired . | . . Allies Hacked . | . . Hacks Repelled . | . . Allies | -11 -10 -------- Run | Yrd Mat Total Allies . | . . Largest Group . | . . Highest-Rated Group . | . . Highest-Rated Ally . | . . Total Orders . | . . Ally Attacks . | . . Total Damage . | . . Kills . | . . Allies Corrupted . | . . Allies Melted . | . . Intel | -11 -10 ------- Run | Yrd Mat Robot Analysis Total 8 | . 8 Derelict Logs Recovered . | . . Drone Launches . | . . Drone Recoveries . | . . Exploration | -11 -10 ------------- Run | Yrd Mat Turns Passed 2324 | 50 2274 Spaces Moved 517 | 20 497 Core . | . . Treads 500 | 6 494 Legs 17 | 14 3 Wheels . | . . Hover . | . . Flight . | . . Fastest Speed 120 | 120 160 Average Speed 387 | 132 397 Slowest Speed 480 | 160 480 Overloaded Moves . | . . Propulsion Burnouts . | . . Robots Hopped . | . . Cave-ins Triggered . | . . Exploration Rate (%) 40 | 3 77 Regions Visited 1 Branch Regions . Pre-discovered Areas . | . . Known Exits Taken . | . . Unknown Exits Taken 1 | 1 . Scrap Searched . | . . Spaces Dug . | . . Terrain Destroyed . | . . Melee . | . . Projectile . | . . AOE . | . . Terrain Rammed . | . . Walls Destroyed . | . . Machines Disabled . | . . Actions | -11 -10 --------- Run | Yrd Mat Total 663 | 31 632 Wait 24 | . 24 Move 516 | 19 497 Hop . | . . Pick Up 12 | 1 11 Fast Attach 4 | 1 3 Attach 6 | . 6 Detach . | . . Swap 7 | 2 5 Drop 4 | 2 2 Fire 90 | 6 84 Melee . | . . Ram . | . . Kick . | . . Crush . | . . Escape Stasis . | . . Rewire . | . . Trap . | . . Miscellaneous . | . . Route ------- -11/Scrapyard -10/Materials (discovered 4 exits: [*Mat x2] / [*Min x2]) History --------- Turn | Location | Event 1 | -11/Scrapyard | Discovered new exit (range 3) 51 | -11/Scrapyard | Entered Materials 169 | -10/Materials | Discovered new exit (range 15) 321 | -10/Materials | Build established: Mutant 525 | -10/Materials | Discovered new exit (range 5) 1246 | -10/Materials | Discovered new exit (range 16) 1305 | -10/Materials | Central database locked down 1852 | -10/Materials | Discovered new exit (range 16) 2265 | -10/Materials | Core integrity fell below 50% 2289 | -10/Materials | Lost 4 parts (1n1u2w) 2306 | -10/Materials | Core integrity fell below 20% 2325 | -10/Materials | Destroyed by G-34 Mercenary with Small Laser Last Messages --------------- 02272_ K-01 Serf collects debris. 02273_ Acquired 43 matter. 02276_ K-01 Serf collects debris. 02278_ W-16 Scout sends out distress signal. 02279_ K-01 Serf collects debris. 02290_ R-06 Scavenger collects Aluminum Leg. 02290_ Aluminum Leg destroyed. 02292_ Critical hit (Burn: +37). 02294_ K-01 Serf collects debris. 02294_ R-06 Scavenger collects Sml. Laser. 02294_ Ion Engine destroyed. 02297_ R-06 Scavenger collects Aluminum Leg. 02298_ K-01 Serf collects debris. 02302_ System corrupted: Component data lost. 02307_ K-01 Serf collects debris. 02317_ G-47 Trooper destroyed. 02317_ Switching to secondary target: G-34 Mercenary. 02319_ Aluminum Leg destroyed. 02322_ K-01 Serf collects debris. 02324_ R-06 Scavenger collects Particle Gun. Map ----- +----------------------------------------------------+ | | | | | | | ??????????????????????????????????????????????? | | ??????????????????????????????????????????????? | | ??????????????????????????????????????????????? | | ??????????????????????????????????????????????? | | ??????????????????????????????????????????????? | | ??????????????????????????????????????????????? | | ??????????????????????????????????????????????? | | ??????????????????????????????????????????????? | | ??????????????????????????????????????????????? | | ??????????????????????????????????????????????? | | ??????????????????????????????????????????????? | | ??????????????????????????????????????????????? | | ??????????????????????????????????????????????? | | ??????????????????????????????????????????????? | | ??????????????????????????????????????????????? | | ??????????????????????????????????????????????? | | ??????????????????????????????????????????????? | | ??????????????????????????????????????????????? | | ??????????????????????????????????#???????????? | | ????????????????############### ###?????????? | | ????????????????# % r * ????????? | | ????????????????# k% g k ????????? | | ????????????????# @ ????????? | | ????????????????# ######### #??????????? | | ????????????????# #?????????????????????????? | | ????????????????# #?????????????????????????? | | ????????????????# #??######?????????????????? | | ????????????????# ##########????????????????? | | ????????????????# ## ###???????????????? | | ?????????????#### ##= # ##??????????????? | | ?????????????# ### # #??????????????? | | ?????????????# ###| # #???????????????? | | ?????????????# ### # ##??????????????? | | ?????????????# ### [=# #?#########???## | | ????########## #######+####### ##### | | ????# # #?# # | | ????# """ "# #?### < | | ????# """ T# #??## | | ????# """ "# ##### % #" "# | | ????# # % #" |"| "# | | ????# """ # ^ ^ #"""""""# | | ????# """ # ^ """ ######### | | ????# """ # """ "T" % | | ????# # """^ | | ##########+### """ ^ """"^ | | # # % # ^ """"" ^ | | # # """"" | +----------------------------------------------------+ Best States ------------- Heat Dissipation 39 Energy Generation 10 Energy Capacity 250 Matter Stores 300 Matter Capacity 300 Sight Range 16 Terrain Scan Range 16 Terrain Scan Density 10 Evasion (%) 50 Recoil Reduction 2 Offensive Hacking 10 Item Schematics ----------------- Huge Storage Unit | -10/Materials | Hacked Lrg. Storage Unit | -10/Materials | Hacked Tractor Beam | -10/Materials | Hacked Robot Schematics ------------------ None Fabricated ------------ Nothing Alien Tech Used ----------------- None Achievements -------------- None Challenges ------------ None Game ------ Seed RiotTransportCompressor Manual? 0 Play Time 00:11:50 Cumulative 95.2 hours Start 2024.09.17 @ 01:34:26 End 2024.09.17 @ 01:46:35 Sessions 1 Manual Loads 0 Difficulty Rogue Special Mode None Game No. 130 Rogue 130 Adventurer 0 Explorer 0 Win Type - Total 1 Types 1/0/0/0/0/0/0/0/0 Lore% 20 Gallery% 56 Achievement% 44 Wizard Run 0 Options --------- Layout 0 ASCII 0 Keyboard 0 Movement Mouse Keybinds 1 Fullscreen 1 Font 18/TerminusBold Map View 76x50 Zoom Use 0% Tactical HUD 1 Map Filters NONE Filters NONE Steam 1 RUN: 59ba23cd-426c-490b-8f34-eca8e99ce5d6